bitfinex/quotes_SOLUSD_20250901
["timestamp","ask_amount","ask_price","bid_price","bid_amount"]
[1756763915708,0.03,195.53,195.52,16.35535201]
[1756763915907,0.03,195.53,195.52,63.65022971]
[1756763917229,0.03,195.53,195.52,68.76479599]
[1756763918120,0.03,195.53,195.52,64.32991829]
[1756763918324,0.03,195.53,195.52,63.65022971]
[1756763918910,0.03,195.53,195.52,68.76479599]
[1756763919122,0.03,195.53,195.52,68.05479599]
[1756763919649,0.03,195.53,195.52,68.71479599]
[1756763922433,0.03,195.53,195.52,25.85479599]
[1756763922618,0.03,195.53,195.52,68.57479599]
[1756763924824,0.58145466,195.55,195.54,44.03047171]
[1756763925028,0.58145466,195.55,195.54,87.26187602]
[1756763925337,0.58145466,195.55,195.54,146.92187602]
[1756763925539,0.58145466,195.55,195.54,148.45949471]
[1756763926451,0.48145466,195.58,195.57,39.59559401]
[1756763926619,0.48145466,195.58,195.57,91.69667527]
[1756763926827,0.48145466,195.58,195.57,93.03505624]
[1756763928326,0.48145466,195.65,195.61,39.59559401]
[1756763928534,0.48145466,195.65,195.61,87.26169301]
[1756763928740,0.48145466,195.65,195.61,93.03390608]
[1756763928944,0.48145466,195.65,195.61,100.1683141]
[1756763929244,0.48145466,195.65,195.64,26.0]
[1756763929422,0.48145466,195.65,195.64,73.66602061]
[1756763929621,0.48145466,195.65,195.64,133.32602061]
[1756763929845,0.48145466,195.65,195.64,146.41047171]
[1756763930849,0.48145466,195.65,195.64,151.52190086]
[1756763931060,0.48145466,195.65,195.64,108.80190086]
[1756763931570,0.48145466,195.65,195.64,98.59559401]
[1756763931730,1.15145466,195.65,195.64,103.03047171]
[1756763931927,1.15145466,195.65,195.64,98.59559401]
[1756763932229,1.15145466,195.65,195.64,52.2447767]
[1756763932630,1.15145466,195.65,195.64,47.1348777]
[1756763932831,0.48145466,195.65,195.64,78.24630685]
[1756763935231,0.48145466,195.65,195.64,137.24630685]
[1756763935432,1.15145466,195.65,195.64,35.54630685]
[1756763935760,1.15145466,195.65,195.64,78.24630685]
[1756763935956,0.48145466,195.65,195.64,78.24630685]
[1756763937742,0.48145466,195.65,195.64,78.75744976]
[1756763938066,0.48145466,195.65,195.64,93.01304377]
[1756763938658,0.48145466,195.65,195.64,152.01304377]
[1756763938828,0.48145466,195.65,195.64,151.50190086]
[1756763940836,0.48145466,195.68,195.67,39.59559401]
[1756763941044,0.48145466,195.72,195.71,39.59559401]
[1756763941264,0.48145466,195.72,195.71,87.3414318]
[1756763941460,0.48145466,195.72,195.71,88.0014318]
[1756763941633,0.48145466,195.72,195.71,90.0486718]
[1756763941835,0.48145466,195.72,195.71,94.49827274]
[1756763942046,0.48145466,195.72,195.71,47.26339504]
[1756763942240,0.48145466,195.72,195.71,94.51827274]
[1756763944155,0.48145466,195.72,195.71,153.51827274]
[1756763944367,0.48145466,195.72,195.71,153.00731265]
[1756763944551,1.15145466,195.72,195.71,46.07771171]
[1756763944740,1.15145466,195.72,195.67,13.59559401]
[1756763944945,0.48145466,195.72,195.71,4.4348777]
[1756763945255,0.48145466,195.72,195.71,47.2548777]
[1756763945432,1.14145466,195.72,195.71,47.2548777]
[1756763945626,1.14145466,195.72,195.71,42.82]
[1756763945853,1.14145466,195.72,195.71,47.2548777]
[1756763947966,1.14145466,195.72,195.71,30.4348777]
[1756763948167,1.14145466,195.72,195.71,26.0]
[1756763948461,1.14145466,195.72,195.71,68.76]
[1756763948957,6.25079453,195.72,195.71,26.0]
[1756763949149,6.25079453,195.72,195.71,42.72]
[1756763949332,23.45902191,195.72,195.64,6.250794]
[1756763949530,4.4348777,195.7,195.65,47.1548777]
[1756763949736,4.4348777,195.7,195.68,0.12]
[1756763949964,0.66,195.69,195.68,42.84]
[1756763950263,5.77012315,195.69,195.68,42.84]
[1756763951735,10.20500085,195.69,195.68,42.84]
[1756763952642,10.20500085,195.69,195.68,1e-08]
[1756763953050,23.80059486,195.69,195.68,1e-08]
[1756763953236,13.59559401,195.68,195.55,4.5548777]
[1756763953440,4.4348777,195.58,195.55,0.12]
[1756763953649,4.4348777,195.58,195.55,25.02]
[1756763953958,0.66,195.57,195.55,25.02]
[1756763954156,0.66,195.56,195.55,25.02]
[1756763954664,5.77352014,195.56,195.55,0.12]
[1756763955249,10.20839784,195.56,195.55,0.12]
[1756763955479,10.20839784,195.56,195.48,0.2]
[1756763955654,4.4348777,195.49,195.48,0.2]
[1756763955859,4.4348777,195.49,195.41,0.12]
[1756763956042,4.4348777,195.44,195.41,42.92]
[1756763956247,0.66,195.43,195.41,42.92]
[1756763956447,0.66,195.42,195.41,42.92]
[1756763956644,5.7771835,195.42,195.41,0.12]
[1756763957048,10.2120612,195.42,195.41,0.12]
[1756763958265,5.7771835,195.42,195.41,0.12]
[1756763958453,10.2120612,195.42,195.41,0.12]
[1756763958781,26.0,195.48,195.41,0.12]
[1756763958983,5.11299723,195.58,195.42,26.0]
[1756763959187,0.66,195.51,195.43,0.71]
[1756763959359,4.4348777,195.52,195.46,4.4348777]
[1756763959561,4.4348777,195.52,195.47,5.1448777]
[1756763959760,4.4348777,195.53,195.48,0.71]
[1756763959958,0.66,195.55,195.48,0.71]
[1756763960162,0.66,195.55,195.48,7.7545583]
[1756763960473,7.0445583,195.54,195.48,7.7545583]
[1756763961261,12.1586219,195.54,195.48,7.7545583]
[1756763962063,5.1140636,195.54,195.48,7.7545583]
[1756763962263,12.1586219,195.54,195.48,7.7545583]
[1756763962672,7.0445583,195.54,195.48,7.7545583]
[1756763962872,12.15861037,195.54,195.48,7.7545583]
[1756763963262,0.66,195.55,195.48,7.7545583]
[1756763963678,7.0445583,195.54,195.48,7.7545583]
[1756763963863,0.66,195.53,195.48,7.7545583]
[1756763964071,0.66,195.56,195.49,0.71]
[1756763964394,0.66,195.59,195.52,7.0445583]
[1756763964599,0.66,195.59,195.53,0.71]
[1756763964888,7.7045583,195.59,195.53,7.7545583]
[1756763965187,7.7045583,195.59,195.53,0.71]
[1756763965375,7.0445583,195.58,195.53,0.71]
[1756763965697,7.7045583,195.59,195.53,12.86882413]
[1756763966204,7.0445583,195.58,195.52,43.98]
[1756763966498,7.0445583,195.55,195.52,43.98]
[1756763966673,7.7045583,195.55,195.52,43.98]
[1756763967058,7.7045583,195.54,195.52,43.98]
[1756763967279,0.66,195.53,195.52,43.98]
[1756763967483,7.7045583,195.53,195.47,33.7545583]
[1756763967668,7.0445583,195.52,195.48,44.26]
[1756763967868,7.7045583,195.52,195.48,44.26]
[1756763968592,0.66,195.51,195.48,44.26]
[1756763968780,12.81941135,195.51,195.48,44.26]
[1756763968989,0.66,195.5,195.48,44.26]
[1756763969367,7.0445583,195.51,195.45,7.7545583]
[1756763969585,7.0445583,195.51,195.46,44.18]
[1756763969896,0.66,195.52,195.47,0.71]
[1756763970096,7.0445583,195.51,195.47,0.71]
[1756763970472,0.69,195.52,195.47,0.71]
[1756763970687,7.0445583,195.51,195.47,0.71]
[1756763971397,7.7045583,195.51,195.47,0.71]
[1756763971601,7.7045583,195.5,195.46,44.18]
[1756763971890,7.0445583,195.47,195.42,7.0445583]
[1756763972065,0.66,195.46,195.42,51.1245583]
[1756763972267,0.03,195.52,195.43,0.71]
[1756763972501,0.03,195.52,195.47,7.0445583]
[1756763972707,13.59559401,195.47,195.41,0.12]
[1756763973008,7.0445583,195.44,195.41,0.12]
[1756763973492,7.7045583,195.46,195.41,0.12]
[1756763973898,0.66,195.45,195.41,0.12]
[1756763974072,7.7045583,195.45,195.41,0.12]
[1756763974267,0.66,195.44,195.41,0.12]
[1756763974474,0.66,195.43,195.41,0.12]
[1756763974689,7.7045583,195.43,195.41,0.12]
[1756763974873,0.66,195.42,195.41,0.12]
[1756763975589,7.7045583,195.42,195.41,0.12]
[1756763976581,0.69,195.42,195.41,0.12]
[1756763976796,7.7345583,195.42,195.41,0.12]
[1756763977406,26.0,195.4,195.39,0.12]
[1756763977580,26.0,195.4,195.37,0.12]
[1756763977581,33.0445583,195.4,195.37,0.12]
[1756763977781,0.69,195.39,195.37,0.12]
[1756763978102,7.0445583,195.38,195.37,0.12]
[1756763978407,7.7345583,195.38,195.37,0.12]
[1756763979377,12.85278943,195.38,195.37,0.12]
[1756763981111,30.38018951,195.42,195.37,0.12]
[1756763981112,0.69,195.42,195.37,0.83]
[1756763981288,7.0445583,195.39,195.37,0.83]
[1756763981698,7.0445583,195.4,195.38,0.71]
[1756763982006,5.80647054,195.45,195.37,0.12]
[1756763982007,7.0445583,195.41,195.39,0.71]
[1756763982188,7.0445583,195.42,195.4,0.71]
[1756763983909,7.0445583,195.42,195.38,0.71]
[1756763984107,7.0445583,195.41,195.38,0.71]
[1756763984716,5.80659545,195.45,195.39,0.71]
[1756763984907,7.0445583,195.41,195.39,0.71]
[1756763986100,7.0445583,195.42,195.39,0.71]
[1756763986300,7.0445583,195.42,195.39,5.82791053]
[1756763986499,7.0445583,195.42,195.39,0.71]
[1756763987200,7.0445583,195.41,195.39,0.71]
[1756763987396,7.0445583,195.41,195.4,0.12]
[1756763987798,0.69,195.45,195.4,0.12]
[1756763988095,7.0445583,195.42,195.4,0.83]
[1756763988296,7.0445583,195.42,195.4,0.12]
[1756763988497,7.7345583,195.41,195.4,0.12]
[1756763988912,0.69,195.41,195.4,0.12]
[1756763989097,7.7345583,195.41,195.4,0.12]
[1756763990417,7.0445583,195.41,195.4,0.12]
[1756763990729,7.7345583,195.41,195.4,0.12]
[1756763992020,0.69,195.41,195.4,0.12]
[1756763992228,7.7345583,195.41,195.4,0.12]
[1756763993491,0.69,195.41,195.4,0.12]
[1756763993692,7.7345583,195.41,195.4,0.12]
[1756763993898,12.85200367,195.41,195.4,0.12]
[1756763996022,10.21720744,195.41,195.4,0.12]
[1756763997621,4.40976207,195.41,195.4,0.12]
[1756763997828,44.18,195.43,195.4,0.12]
[1756763998005,173.39559401,195.47,195.4,0.12]
[1756763998006,4.40976207,195.41,195.4,0.12]
[1756764000318,5.52744537,195.41,195.4,0.12]
[1756764000508,27.94256352,195.41,195.4,0.12]
[1756764001021,44.00535608,195.39,195.37,0.12]
[1756764001339,5.11954128,195.33,195.26,0.71]
[1756764001502,5.11954128,195.33,195.21,40.26268347]
[1756764001503,4.40976207,195.27,195.22,0.71]
[1756764001703,4.40976207,195.26,195.23,0.71]
[1756764002006,4.40976207,195.25,195.23,0.71]
[1756764002303,4.40976207,195.25,195.21,0.2]
[1756764002304,14.00559401,195.29,195.21,0.91]
[1756764002527,4.40976207,195.24,195.21,0.91]
[1756764002921,4.40976207,195.22,195.21,0.91]
[1756764003228,0.41,195.26,195.21,0.2]
[1756764003411,4.40976207,195.23,195.21,0.2]
[1756764003612,4.40976207,195.22,195.21,0.2]
[1756764003827,0.41,195.25,195.21,0.2]
[1756764004019,7.06826352,195.22,195.21,0.2]
[1756764004730,21.07385753,195.22,195.21,0.2]
[1756764004923,26.0,195.2,195.19,0.2]
[1756764005124,46.66385753,195.2,195.16,0.12]
[1756764005326,46.66385753,195.17,195.16,0.12]
[1756764005513,46.66385753,195.17,195.15,0.12]
[1756764005514,95.7475958,195.17,195.15,0.12]
[1756764005710,21.07385753,195.16,195.14,0.12]
[1756764005914,46.66385753,195.15,195.14,0.12]
[1756764006319,47.07385753,195.15,195.14,0.12]
[1756764006625,21.07385753,195.15,195.14,0.12]
[1756764007017,47.07385753,195.15,195.14,0.12]
[1756764007210,47.07385753,195.15,195.12,0.12]
[1756764007211,13.59559401,195.14,195.12,0.12]
[1756764007411,32.85664703,195.14,195.12,0.12]
[1756764007608,33.26664703,195.14,195.12,0.12]
[1756764008214,77.20664703,195.14,195.12,0.12]
[1756764009026,27.73212105,195.13,195.12,0.12]
[1756764009539,33.26690965,195.13,195.12,0.12]
[1756764009930,77.16690965,195.13,195.12,0.12]
[1756764010324,33.26690965,195.13,195.12,0.12]
[1756764010523,77.14690965,195.13,195.12,0.12]
[1756764011521,77.14690965,195.13,195.09,0.12]
[1756764011522,26.0,195.1,195.09,0.12]
[1756764011717,76.94826352,195.1,195.09,0.12]
[1756764012044,77.35826352,195.1,195.09,0.12]
[1756764012244,77.35826352,195.1,194.97,0.2]
[1756764012245,26.0,195.03,194.97,0.2]
[1756764012452,57.47559401,195.02,194.97,0.2]
[1756764013058,7.06826352,194.98,194.97,0.2]
[1756764013348,7.06826352,194.98,194.97,0.87]
[1756764013739,7.06826352,194.98,194.97,0.2]
[1756764014733,20.66385753,194.98,194.97,0.2]
[1756764017270,64.48385753,194.98,194.97,0.2]
[1756764018253,13.59559401,194.98,194.97,0.2]
[1756764018440,26.0,195.01,194.97,0.87]
[1756764018639,2.056714,195.03,194.98,0.67]
[1756764019050,2.056714,195.03,195.0,7.06826352]
[1756764019256,7.06826352,195.09,195.01,0.67]
[1756764019460,7.06826352,195.1,195.04,7.06826352]
[1756764019665,26.0,195.1,195.05,0.67]
[1756764019841,7.06826352,195.11,195.05,0.67]
[1756764020037,7.06826352,195.11,195.05,7.73826352]
[1756764020348,7.06826352,195.11,195.06,0.67]
[1756764020541,43.88,195.13,195.07,0.67]
[1756764020739,15.413466,195.19,195.08,7.06826352]
[1756764021040,7.06826352,195.15,195.09,0.67]
[1756764021351,7.06826352,195.15,195.09,7.73826352]
[1756764021671,7.06826352,195.15,195.1,12.86384014]
[1756764021856,7.06826352,195.15,195.11,0.67]
[1756764022058,7.06826352,195.15,195.12,0.67]
[1756764023062,7.06826352,195.15,195.12,5.12489181]
[1756764023262,7.06826352,195.14,195.11,5.12528142]
[1756764023560,7.06826352,195.14,195.11,5.79528142]
[1756764024282,0.03,195.17,195.13,7.06826352]
[1756764024570,0.03,195.17,195.12,0.67]
[1756764024571,0.03,195.17,195.16,7.06826352]
[1756764024800,0.03,195.19,195.16,7.06826352]
[1756764024801,0.03,195.19,195.16,7.73826352]
[1756764024978,0.03,195.19,195.17,0.67]
[1756764025165,0.03,195.19,195.18,12.19173928]
[1756764025372,15.401597,195.34,195.22,39.59559401]
[1756764025538,7.06826352,195.33,195.27,7.06826352]
[1756764025742,0.03,195.36,195.23,0.67]
[1756764025743,0.73,195.36,195.28,7.73826352]
[1756764025945,7.06826352,195.34,195.28,7.73826352]
[1756764026171,7.06826352,195.35,195.29,7.06826352]
[1756764026581,7.06826352,195.33,195.28,0.67]
[1756764026875,7.06826352,195.33,195.29,0.67]
[1756764027051,0.73,195.36,195.29,0.67]
[1756764027243,0.03,195.36,195.33,7.06826352]
[1756764027442,0.03,195.36,195.34,7.73826352]
[1756764027642,0.03,195.36,195.3,26.0]
[1756764027643,0.03,195.36,195.35,7.73826352]
[1756764029078,0.03,195.36,195.35,0.67]
[1756764029280,0.03,195.36,195.35,26.67]
[1756764029448,0.03,195.38,195.35,38.85728066]
[1756764029645,0.03,195.38,195.37,7.06826352]
[1756764030046,0.03,195.38,195.37,21.33385753]
[1756764030252,0.03,195.4,195.39,26.0]
[1756764030473,0.03,195.4,195.39,46.66385753]
[1756764030683,0.03,195.4,195.39,47.33385753]
[1756764031267,0.03,195.4,195.39,52.45182671]
[1756764032582,0.03,195.4,195.39,111.45182671]
[1756764032771,0.03,195.52,195.44,13.59559401]
[1756764032974,0.03,195.52,195.48,7.06826352]
[1756764033151,0.03,195.52,195.49,7.06826352]
[1756764033565,0.03,195.52,195.51,7.06826352]
[1756764034077,7.09826352,195.52,195.45,7.06826352]
[1756764034278,7.79826352,195.52,195.45,7.06826352]
[1756764034459,12.91284068,195.52,195.45,7.06826352]
[1756764034655,7.06826352,195.51,195.45,26.0]
[1756764034880,5.14457716,195.52,195.42,2.050704]
[1756764035084,7.06826352,195.49,195.43,7.06826352]
[1756764035267,7.76826352,195.49,195.43,7.06826352]
[1756764035577,7.06826352,195.49,195.41,26.0]
[1756764035782,7.06826352,195.42,195.37,15.381855]
[1756764036085,7.06826352,195.4,195.35,33.06826352]
[1756764036578,5.11782955,195.4,195.33,0.7]
[1756764036773,7.06826352,195.38,195.31,15.381855]
[1756764037082,7.06826352,195.37,195.32,26.0]
[1756764037262,7.06826352,195.36,195.31,7.06826352]
[1756764037458,7.06826352,195.36,195.25,5.12137844]
[1756764037459,0.7,195.35,195.26,0.7]
[1756764037675,0.7,195.35,195.28,51.12826352]
[1756764037880,7.06826352,195.34,195.31,26.0]
[1756764038258,7.76826352,195.34,195.31,26.0]
[1756764038785,5.11953586,195.34,195.31,26.0]
[1756764039382,12.18779938,195.34,195.29,7.06826352]
[1756764039795,12.18779938,195.34,195.28,77.12826352]
[1756764040087,5.11975398,195.33,195.26,11.35067818]
[1756764040266,5.11785286,195.4,195.29,0.7]
[1756764040462,5.11639805,195.45,195.37,10.65067818]
[1756764040670,15.76707623,195.45,195.39,10.65067818]
[1756764040991,0.03,195.4,195.39,10.65067818]
[1756764041167,0.03,195.4,195.39,11.35067818]
[1756764042163,0.03,195.4,195.39,19.41356319]
[1756764042376,0.03,195.4,195.39,30.06424137]
[1756764043607,0.03,195.4,195.39,89.06424137]
[1756764043770,0.03,195.4,195.39,69.65067818]
[1756764044099,0.03,195.4,195.39,70.35067818]
[1756764044581,0.03,195.4,195.39,114.89067818]
[1756764044780,0.03,195.4,195.39,114.19067818]
[1756764045179,0.03,195.4,195.39,129.54]
[1756764045402,0.03,195.4,195.35,0.12]
[1756764045580,0.03,195.4,195.35,70.6]
[1756764045774,0.73,195.4,195.35,81.25067818]
[1756764045974,0.03,195.4,195.35,81.25067818]
[1756764046180,16.46874661,195.39,195.35,0.12]
[1756764046373,15.76874661,195.39,195.35,0.12]
[1756764046579,0.7,195.38,195.35,0.12]
[1756764046780,10.65067818,195.36,195.35,0.12]
[1756764046987,11.35067818,195.36,195.35,0.12]
[1756764047881,16.46943329,195.36,195.35,0.12]
[1756764048382,5.81875511,195.36,195.35,0.12]
[1756764048585,16.46943329,195.36,195.35,0.12]
[1756764048795,5.1477339,195.4,195.35,0.12]
[1756764048999,15.79841208,195.4,195.35,0.12]
[1756764049186,5.1477339,195.4,195.35,0.12]
[1756764049487,5.1477339,195.4,195.35,10.77067818]
[1756764049681,0.03,195.4,195.36,36.65067818]
[1756764049881,0.03,195.4,195.39,26.0]
[1756764051378,0.03,195.4,195.35,0.12]
[1756764051578,0.73,195.4,195.36,26.0]
[1756764052187,0.73,195.4,195.36,36.65067818]
[1756764053384,0.73,195.4,195.36,26.0]
[1756764053710,5.1477928,195.4,195.36,36.65067818]
[1756764054486,5.1477928,195.4,195.36,26.0]
[1756764054705,5.1477928,195.4,195.36,36.65067818]
[1756764055206,0.03,195.4,195.36,36.65067818]
[1756764055807,0.03,195.4,195.36,26.0]
[1756764056506,0.03,195.4,195.36,36.65067818]
[1756764057811,0.73,195.4,195.36,36.65067818]
[1756764058307,5.84786358,195.4,195.36,36.65067818]
[1756764059398,0.03,195.4,195.36,36.65067818]
[1756764060016,0.73,195.4,195.36,26.0]
[1756764060321,5.84782114,195.4,195.36,26.0]
[1756764060621,0.7,195.39,195.35,0.12]
[1756764060793,0.7,195.38,195.35,44.36]
[1756764061122,0.7,195.37,195.35,0.12]
[1756764061487,7.75248204,195.36,195.35,0.12]
[1756764062514,12.87123715,195.36,195.35,0.12]
[1756764063521,38.87123715,195.36,195.35,1e-08]
[1756764063809,38.87123715,195.36,195.33,1e-08]
[1756764063810,39.59559401,195.34,195.33,1e-08]
[1756764064014,13.59559401,195.33,195.23,51.19248204]
[1756764064312,7.05248204,195.27,195.23,44.14]
[1756764064516,5.12137662,195.26,195.23,44.14]
[1756764064900,7.75248204,195.25,195.19,7.25248204]
[1756764065196,7.05248204,195.23,195.19,0.2]
[1756764065517,7.05248204,195.2,195.19,0.2]
[1756764065896,7.74248204,195.2,195.19,0.2]
[1756764066205,0.69,195.2,195.19,0.2]
[1756764066391,12.86543285,195.2,195.19,0.2]
[1756764067211,12.86543285,195.2,195.19,1e-08]
[1756764067403,26.46102686,195.2,195.19,1e-08]
[1756764067992,26.0,195.17,195.15,1e-08]
[1756764068197,24.26858267,195.16,195.15,1e-08]
[1756764068396,26.0,195.13,195.02,31.71]
[1756764068600,10.67298866,195.09,195.03,10.67298866]
[1756764068811,10.67298866,195.09,195.04,10.67298866]
[1756764069007,10.67298866,195.1,195.05,10.67298866]
[1756764069396,10.67298866,195.1,195.04,11.38298866]
[1756764070096,0.69,195.12,195.04,0.71]
[1756764070296,0.69,195.12,195.05,10.67298866]
[1756764070623,0.69,195.2,195.11,10.67298866]
[1756764070811,0.69,195.2,195.05,5.12678611]
[1756764070812,47.31559401,195.23,195.12,11.38298866]
[1756764071122,47.31559401,195.23,195.08,26.0]
[1756764071123,10.67298866,195.21,195.16,10.67298866]
[1756764071326,0.69,195.26,195.17,11.38298866]
[1756764071506,0.69,195.28,195.2,10.67298866]
[1756764071713,0.69,195.28,195.18,0.71]
[1756764071898,10.67298866,195.26,195.18,0.71]
[1756764072099,10.67298866,195.23,195.18,11.38298866]
[1756764072308,10.67298866,195.22,195.16,10.67298866]
[1756764072508,10.67298866,195.23,195.18,10.67298866]
[1756764072721,10.67298866,195.24,195.18,10.67298866]
[1756764072927,10.67298866,195.24,195.16,0.71]
[1756764073113,10.67298866,195.24,195.18,10.67298866]
[1756764073424,10.67298866,195.22,195.17,10.67298866]
[1756764073725,10.67298866,195.22,195.16,11.38298866]
[1756764074908,10.67298866,195.22,195.16,10.67298866]
[1756764075113,10.67298866,195.2,195.14,36.67298866]
[1756764075825,10.67298866,195.19,195.14,26.0]
[1756764076118,11.36298866,195.19,195.17,0.12]
[1756764076327,10.67298866,195.18,195.17,0.12]
[1756764076537,15.79646442,195.18,195.17,0.12]
[1756764076708,5.12347576,195.18,195.17,0.12]
[1756764076900,15.79646442,195.18,195.17,0.12]
[1756764078122,12.80353365,195.26,195.17,0.83]
[1756764078325,0.69,195.27,195.19,10.67298866]
[1756764078620,5.12058989,195.29,195.21,10.67298866]
[1756764078824,10.67298866,195.27,195.2,37.38298866]
[1756764079027,10.67298866,195.27,195.21,10.67298866]
[1756764079209,0.69,195.28,195.2,37.38298866]
[1756764079411,10.67298866,195.27,195.2,26.71]
[1756764079713,10.67298866,195.26,195.2,37.38298866]
[1756764079918,10.67298866,195.23,195.17,10.79298866]
[1756764080221,10.67298866,195.22,195.17,0.12]
[1756764080401,10.67298866,195.21,195.17,0.12]
[1756764080602,5.12242598,195.22,195.17,0.12]
[1756764080930,10.67298866,195.21,195.17,0.12]
[1756764081097,9.0241058,195.21,195.17,0.12]
[1756764081501,9.0241058,195.2,195.17,0.12]
[1756764081728,9.7141058,195.21,195.17,0.12]
[1756764081910,9.0241058,195.21,195.17,0.12]
[1756764082429,5.12242598,195.22,195.17,0.12]
[1756764082628,9.7141058,195.21,195.17,0.12]
[1756764082840,5.12295081,195.2,195.17,0.12]
[1756764083216,14.83705661,195.2,195.17,0.12]
[1756764084509,9.7141058,195.19,195.17,0.12]
[1756764084734,14.14758156,195.18,195.17,0.12]
[1756764085142,14.83758156,195.18,195.17,0.12]
[1756764085937,26.0,195.15,195.13,0.12]
[1756764086138,9.0241058,195.14,195.02,9.0241058]
[1756764086313,9.0241058,195.09,195.03,9.0241058]
[1756764086824,14.15020791,195.08,195.03,9.0241058]
[1756764088331,5.12581124,195.1,195.04,0.71]
[1756764088520,5.81540845,195.11,195.04,9.7341058]
[1756764088722,5.12610211,195.08,195.02,85.0]
[1756764088928,5.12610211,195.08,195.03,9.0241058]
[1756764089243,5.12610211,195.08,195.03,9.7341058]
[1756764089538,5.12610211,195.08,195.04,9.0241058]
[1756764090247,5.12610211,195.08,195.04,6.06510882]
[1756764090427,12.81251636,195.13,195.04,6.06510882]
[1756764090614,20.06342581,195.18,195.05,0.71]
[1756764090814,6.06510882,195.16,195.1,6.06510882]
[1756764091017,5.12396989,195.17,195.11,6.06510882]
[1756764091229,11.18907871,195.17,195.11,6.06510882]
[1756764091431,11.18907871,195.17,195.09,0.71]
[1756764091634,5.12396989,195.17,195.11,6.06510882]
[1756764091839,6.06510882,195.16,195.11,6.06510882]
[1756764092038,14.15196368,195.17,195.11,35.02799379]
[1756764092219,5.12396989,195.17,195.12,35.02799379]
[1756764092423,5.12396989,195.17,195.12,35.73799379]
[1756764092825,5.12396989,195.17,195.13,0.71]
[1756764094221,5.12396989,195.17,195.12,35.02799379]
[1756764094420,0.03,195.18,195.14,9.02799379]
[1756764094622,0.03,195.18,195.16,9.02799379]
[1756764094824,0.03,195.18,195.17,9.02799379]
[1756764095034,0.03,195.18,195.17,35.02799379]
[1756764095233,0.03,195.18,195.17,35.72799379]
[1756764095435,0.03,195.18,195.17,49.3235878]
[1756764096319,0.03,195.18,195.17,54.44732607]
[1756764096522,0.03,195.18,195.17,45.41933228]
[1756764096837,0.03,195.18,195.17,54.44732607]
[1756764098525,0.03,195.18,195.17,45.41933228]
[1756764098725,0.03,195.18,195.17,54.44732607]
[1756764098941,0.03,195.18,195.17,40.85173206]
[1756764099144,0.03,195.18,195.17,35.72799379]
[1756764099961,0.03,195.18,195.17,26.7]
[1756764100241,0.03,195.18,195.17,35.72799379]
[1756764100646,0.03,195.18,195.17,26.0]
[1756764100839,9.77799379,195.18,195.12,9.717993]
[1756764101149,9.74799379,195.17,195.11,53.60799379]
[1756764101342,9.02799379,195.16,195.11,44.58]
[1756764101543,0.72,195.15,195.11,44.58]
[1756764101848,0.72,195.14,195.11,44.58]
[1756764102046,5.1247886,195.13,195.09,9.02799379]
[1756764102223,9.74799379,195.12,195.08,44.6]
[1756764102548,9.74799379,195.11,195.08,26.0]
[1756764102742,0.72,195.17,195.1,35.02799379]
[1756764102936,0.72,195.17,195.11,53.60799379]
[1756764103948,14.87194019,195.17,195.11,53.60799379]
[1756764104151,9.74799379,195.17,195.11,53.60799379]
[1756764104361,0.03,195.18,195.13,9.02799379]
[1756764104561,0.03,195.18,195.16,9.02799379]
[1756764105333,0.03,195.18,195.17,9.72799379]
[1756764105929,0.03,195.18,195.17,5.82373827]
[1756764106162,0.03,195.18,195.17,35.02799379]
[1756764106474,0.03,195.18,195.17,26.0]
[1756764106758,0.03,195.18,195.17,35.02799379]
[1756764108045,0.03,195.18,195.17,26.0]
[1756764108365,0.75,195.18,195.15,44.36]
[1756764108734,0.72,195.17,195.12,9.02799379]